bitfinex/quotes_BTCUSD_20250615
["timestamp","ask_amount","ask_price","bid_price","bid_amount"]
[1749947060863,0.64204324,105660.0,105650.0,0.15968]
[1749947061079,0.63315865,105660.0,105650.0,0.15968]
[1749947061353,0.64204325,105660.0,105650.0,0.15968]
[1749947061561,0.61538947,105660.0,105650.0,0.15968]
[1749947061770,0.63315867,105660.0,105650.0,0.15968]
[1749947061950,0.62427407,105660.0,105650.0,0.15968]
[1749947062192,0.64204325,105660.0,105650.0,0.15968]
[1749947062392,0.63315865,105660.0,105650.0,0.15968]
[1749947062577,0.6353798,105660.0,105650.0,0.15968]
[1749947062784,0.62649521,105660.0,105650.0,0.15968]
[1749947062985,0.64204324,105660.0,105650.0,0.15968]
[1749947063191,1.07941292,105660.0,105650.0,0.15968]
[1749947063390,1.08607636,105660.0,105650.0,0.15968]
[1749947063553,1.07719177,105660.0,105650.0,0.15968]
[1749947063877,1.08607636,105660.0,105650.0,0.15968]
[1749947064087,1.07941292,105660.0,105650.0,0.006]
[1749947064437,1.08607636,105660.0,105650.0,0.006]
[1749947065156,1.05942259,105660.0,105650.0,0.006]
[1749947065523,2.03080321,105660.0,105650.0,0.006]
[1749947065732,2.03080554,105660.0,105650.0,0.006]
[1749947065934,2.18234428,105660.0,105650.0,0.006]
[1749947066175,2.20011719,105660.0,105650.0,0.006]
[1749947066379,2.19123105,105660.0,105650.0,0.003]
[1749947066580,1.31205077,105660.0,105650.0,0.003]
[1749947066782,1.74053316,105660.0,105650.0,0.005]
[1749947066983,1.75608389,105660.0,105650.0,0.002]
[1749947067189,1.7294255,105660.0,105650.0,0.002]
[1749947067394,1.7560839,105660.0,105650.0,0.003]
[1749947067570,1.75608388,105660.0,105650.0,0.003]
[1749947067772,1.756084,105660.0,105650.0,0.003]
[1749947068076,1.74941957,105660.0,105650.0,0.003]
[1749947068512,1.74941959,105660.0,105650.0,0.003]
[1749947068714,1.73831197,105660.0,105650.0,0.003]
[1749947068917,1.73831205,105660.0,105650.0,0.003]
[1749947069129,1.7227609,105660.0,105650.0,0.003]
[1749947069338,1.74719842,105660.0,105650.0,0.003]
[1749947069550,1.31205167,105660.0,105650.0,0.003]
[1749947069749,1.75608479,105660.0,105650.0,0.003]
[1749947070076,1.74942001,105660.0,105650.0,0.003]
[1749947070277,1.73831205,105660.0,105650.0,0.003]
[1749947070461,1.72942568,105660.0,105650.0,0.003]
[1749947070698,1.73831205,105660.0,105650.0,0.003]
[1749947070897,1.75608479,105660.0,105650.0,0.003]
[1749947071774,1.73164727,105660.0,105650.0,0.003]
[1749947071946,1.74942001,105660.0,105650.0,0.003]
[1749947072146,1.75608479,105660.0,105650.0,0.003]
[1749947072363,1.74053364,105660.0,105650.0,0.003]
[1749947072585,1.75608479,105660.0,105650.0,0.003]
[1749947072783,1.74942001,105660.0,105650.0,0.003]
[1749947072942,1.3031653,105660.0,105650.0,0.003]
[1749947073157,1.73831205,105660.0,105650.0,0.003]
[1749947073359,1.74942001,105660.0,105650.0,0.003]
[1749947073558,1.75608479,105660.0,105650.0,0.003]
[1749947073797,1.7227609,105660.0,105650.0,0.003]
[1749947074164,1.75608479,105660.0,105650.0,0.003]
[1749947074363,1.80899162,105660.0,105650.0,0.003]
[1749947074594,1.75608479,105660.0,105650.0,0.003]
[1749947074748,2.16679402,105660.0,105650.0,0.003]
[1749947074953,2.18234517,105660.0,105650.0,0.003]
[1749947075150,2.18456676,105660.0,105650.0,0.003]
[1749947075352,1.73164727,105660.0,105650.0,0.003]
[1749947075758,1.72942568,105660.0,105650.0,0.003]
[1749947076224,1.74942001,105660.0,105650.0,0.003]
[1749947076443,1.73831205,105660.0,105650.0,0.003]
[1749947076590,1.74053364,105660.0,105650.0,0.003]
[1749947076808,1.75608479,105660.0,105650.0,0.003]
[1749947076990,1.74941945,105660.0,105650.0,0.003]
[1749947077216,1.7316471,105660.0,105650.0,0.003]
[1749947077384,1.74941944,105660.0,105650.0,0.003]
[1749947077585,1.74941945,105660.0,105650.0,0.003]
[1749947077912,1.73831173,105660.0,105650.0,0.003]
[1749947078115,1.7560842,105660.0,105650.0,0.003]
[1749947078321,1.75608439,105660.0,105650.0,0.003]
[1749947078575,2.20011783,105660.0,105650.0,0.003]
[1749947078749,2.18234512,105660.0,105650.0,0.003]
[1749947078987,2.19345305,105660.0,105650.0,0.003]
[1749947079225,2.2001178,105660.0,105650.0,0.003]
[1749947079422,2.17568036,105660.0,105650.0,0.003]
[1749947079637,2.20011779,105660.0,105650.0,0.003]
[1749947079858,2.18234511,105660.0,105650.0,0.003]
[1749947080077,2.19123144,105660.0,105650.0,0.003]
[1749947080283,2.20011777,105660.0,105650.0,0.003]
[1749947080492,2.1823451,105660.0,105650.0,0.003]
[1749947080622,2.20011777,105660.0,105650.0,0.003]
[1749947081158,1.75608465,105660.0,105650.0,0.003]
[1749947081358,1.73831198,105660.0,105650.0,0.003]
[1749947081566,1.75608465,105660.0,105650.0,0.003]
[1749947081861,1.7494199,105660.0,105650.0,0.003]
[1749947082073,1.75608465,105660.0,105650.0,0.003]
[1749947082500,1.73831198,105660.0,105650.0,0.003]
[1749947082653,1.75608465,105660.0,105650.0,0.003]
[1749947083190,1.7494199,105660.0,105650.0,0.003]
[1749947083397,1.73831198,105660.0,105650.0,0.003]
[1749947083635,1.74719832,105660.0,105650.0,0.003]
[1749947084028,1.75608465,105660.0,105650.0,0.003]
[1749947084238,1.74053357,105660.0,105650.0,0.003]
[1749947084452,2.16679402,105660.0,105650.0,0.003]
[1749947084658,2.19345302,105660.0,105650.0,0.003]
[1749947084808,2.20011777,105660.0,105650.0,0.003]
[1749947085029,2.19345305,105660.0,105650.0,0.003]
[1749947085237,2.19123146,105660.0,105650.0,0.003]
[1749947085859,2.2001178,105660.0,105650.0,0.003]
[1749947086062,2.18234511,105660.0,105650.0,0.003]
[1749947086275,2.20011779,105660.0,105650.0,0.003]
[1749947086475,2.18456671,105660.0,105650.0,0.003]
[1749947086657,2.2001178,105660.0,105650.0,0.003]
[1749947086859,2.21465889,105660.0,105650.0,0.003]
[1749947087058,2.21465915,105660.0,105650.0,0.003]
[1749947087391,2.49312665,105660.0,105650.0,0.003]
[1749947087594,2.49312666,105660.0,105650.0,0.003]
[1749947087753,2.48424004,105660.0,105650.0,0.003]
[1749947087959,2.47535359,105660.0,105650.0,0.003]
[1749947088153,2.49312716,105660.0,105650.0,0.001]
[1749947088375,0.60511018,105650.0,105640.0,0.02837372]
[1749947088574,1.33239114,105650.0,105640.0,0.02837372]
[1749947088797,1.3323915,105650.0,105640.0,0.02837372]
[1749947088998,1.33733993,105650.0,105640.0,0.02837372]
[1749947089415,1.33067464,105650.0,105640.0,0.02837372]
[1749947089611,1.33734017,105650.0,105640.0,0.02837372]
[1749947090175,1.33734046,105650.0,105640.0,0.02837372]
[1749947090408,1.31067911,105650.0,105640.0,0.02837372]
[1749947090644,1.33734233,105650.0,105640.0,0.02837372]
[1749947090896,1.35914462,105650.0,105640.0,0.02837372]
[1749947091093,1.34803527,105650.0,105640.0,0.02837372]
[1749947091293,1.85112872,105650.0,105640.0,0.02837372]
[1749947091470,1.42264998,105650.0,105640.0,0.02837372]
[1749947091703,1.407096,105650.0,105640.0,0.02837372]
[1749947091908,1.42265041,105650.0,105640.0,0.02837372]
[1749947092339,1.41598424,105650.0,105640.0,0.02837372]
[1749947092551,1.41898424,105650.0,105640.0,0.02837372]
[1749947092754,1.85412913,105650.0,105640.0,0.02837372]
[1749947092956,1.41676236,105650.0,105640.0,0.01912992]
[1749947093158,1.4256508,105650.0,105640.0,0.01912992]
[1749947093366,1.89123057,105650.0,105640.0,0.01912992]
[1749947093569,1.89789692,105650.0,105640.0,0.01912992]
[1749947093748,1.89123057,105650.0,105640.0,0.01912992]
[1749947093990,1.87123153,105650.0,105640.0,0.01912992]
[1749947094197,1.88900846,105650.0,105640.0,0.01912992]
[1749947094406,1.89123057,105650.0,105640.0,0.01912992]
[1749947094616,1.89789692,105650.0,105640.0,0.01912992]
[1749947094828,1.88900846,105650.0,105640.0,0.01912992]
[1749947095094,1.72866211,105650.0,105640.0,0.01912992]
[1749947095311,1.89793692,105650.0,105640.0,0.01912992]
[1749947095534,1.89127057,105650.0,105640.0,0.01912992]
[1749947095773,1.88904846,105650.0,105640.0,0.01912992]
[1749947096236,1.99102057,105650.0,105640.0,0.01912992]
[1749947096461,1.89127093,105650.0,105640.0,0.01912992]
[1749947096674,1.99768827,105650.0,105640.0,0.01912992]
[1749947096886,0.53884462,105610.0,105600.0,0.09091794]
[1749947097096,1.1124557,105610.0,105600.0,0.09139169]
[1749947097309,1.11245705,105610.0,105600.0,0.09139169]
[1749947097540,1.10356696,105610.0,105600.0,0.09139169]
[1749947097747,1.1124569,105610.0,105600.0,0.09139169]
[1749947097952,1.10578945,105610.0,105600.0,0.09139169]
[1749947098168,1.09689952,105610.0,105600.0,0.09139169]
[1749947098372,1.0791195,105610.0,105600.0,0.09139169]
[1749947098810,1.08793249,105610.0,105600.0,0.09439169]
[1749947099227,1.08793249,105610.0,105600.0,0.01877375]
[1749947099437,1.03022366,105610.0,105600.0,0.01877375]
[1749947099654,1.03022366,105610.0,105600.0,0.02077375]
[1749947100084,1.03903669,105610.0,105600.0,0.02077375]
[1749947100691,1.03903667,105610.0,105600.0,0.02077375]
[1749947101102,1.03022366,105610.0,105600.0,0.02077375]
[1749947101543,1.03903666,105610.0,105600.0,0.02077375]
[1749947101737,1.03903667,105610.0,105600.0,0.02077375]
[1749947101939,1.04867625,105610.0,105600.0,0.02077375]
[1749947102903,1.03986324,105610.0,105600.0,0.02077375]
[1749947103107,1.04867624,105610.0,105600.0,0.02077375]
[1749947103317,1.03986324,105610.0,105600.0,0.02077375]
[1749947103494,1.04867624,105610.0,105600.0,0.02077375]
[1749947103688,1.04867625,105610.0,105600.0,0.02077375]
[1749947104460,1.05362465,105610.0,105600.0,0.02077375]
[1749947104601,1.04481164,105610.0,105600.0,0.02077375]
[1749947104799,0.65848738,105610.0,105600.0,0.02077375]
[1749947105047,0.65848738,105610.0,105600.0,0.03647375]
[1749947105250,0.64967436,105610.0,105600.0,0.03647375]
[1749947105397,0.65848716,105610.0,105600.0,0.03647375]
[1749947105601,0.65848719,105610.0,105600.0,0.03647375]
[1749947105818,0.6584872,105610.0,105600.0,0.03647375]
[1749947106046,0.64967436,105610.0,105600.0,0.03647375]
[1749947106245,0.65848719,105610.0,105600.0,0.03647375]
[1749947106466,0.64967436,105610.0,105600.0,0.03647375]
[1749947106645,0.6584872,105610.0,105600.0,0.03647375]
[1749947107250,0.65848721,105610.0,105600.0,0.03647375]
[1749947107539,1.05362449,105610.0,105600.0,0.03647375]
[1749947108417,1.05362452,105610.0,105600.0,0.03647375]
[1749947108616,1.05362446,105610.0,105600.0,0.03647375]
[1749947108786,1.04481164,105610.0,105600.0,0.03647375]
[1749947108968,1.05362446,105610.0,105600.0,0.03647375]
[1749947109525,1.05370145,105610.0,105600.0,0.03647375]
[1749947109653,1.04481164,105610.0,105600.0,0.03647375]
[1749947109855,1.05147902,105610.0,105600.0,0.03647375]
[1749947110061,1.05147902,105610.0,105600.0,0.02077375]
[1749947110296,1.05370145,105610.0,105600.0,0.02077375]
[1749947110744,1.06036881,105610.0,105600.0,0.02077375]
[1749947110977,1.04481164,105610.0,105600.0,0.02077375]
[1749947111151,1.051479,105610.0,105600.0,0.02077375]
[1749947111357,1.05370146,105610.0,105600.0,0.02077375]
[1749947111754,1.06036883,105610.0,105600.0,0.02077375]
[1749947112386,1.05370146,105610.0,105600.0,0.02077375]
[1749947112719,1.06036883,105610.0,105600.0,0.02077375]
[1749947112917,1.05370146,105610.0,105600.0,0.02077375]
[1749947113139,1.06036883,105610.0,105600.0,0.02077375]
[1749947113313,1.05147901,105610.0,105600.0,0.02077375]
[1749947113523,1.06036883,105610.0,105600.0,0.02077375]
[1749947113724,1.05147904,105610.0,105600.0,0.02077375]
[1749947113930,1.06036891,105610.0,105600.0,0.02077375]
[1749947114618,1.04481164,105610.0,105600.0,0.02077375]
[1749947114842,1.0603689,105610.0,105600.0,0.02077375]
[1749947115081,1.05147907,105610.0,105600.0,0.00547375]
[1749947115300,1.09066939,105610.0,105600.0,0.00547375]
[1749947115518,1.23629936,105610.0,105600.0,0.00547375]
[1749947115733,1.24519017,105610.0,105600.0,0.00547375]
[1749947115959,0.9434897,105590.0,105580.0,0.0306]
[1749947116178,0.56391117,105590.0,105580.0,0.03064736]
[1749947116309,0.56391119,105590.0,105580.0,0.03064736]
[1749947116958,0.95904848,105590.0,105580.0,0.03064736]
[1749947117160,0.95238043,105590.0,105580.0,0.03064736]
[1749947117381,0.95904848,105590.0,105580.0,0.03064736]
[1749947117586,0.95903023,105590.0,105580.0,0.03064736]
[1749947117801,0.95236218,105590.0,105580.0,0.03064736]
[1749947118002,0.95901656,105590.0,105580.0,0.03064736]
[1749947118220,0.95901656,105590.0,105580.0,0.01504736]
[1749947118425,0.95014544,105590.0,105580.0,0.03014736]
[1749947118632,0.95901979,105590.0,105580.0,0.03314736]
[1749947118836,0.95236405,105590.0,105580.0,0.03814736]
[1749947119204,0.95901981,105590.0,105580.0,0.03014736]
[1749947119582,0.95901981,105590.0,105580.0,0.03114736]
[1749947119825,0.95509386,105590.0,105580.0,0.03114736]
[1749947120117,0.56883093,105590.0,105580.0,0.03114736]
[1749947120525,0.55995658,105590.0,105580.0,0.03214736]
[1749947120733,0.56883093,105590.0,105580.0,0.03214736]
[1749947120945,0.55995658,105590.0,105580.0,0.03214736]
[1749947121142,0.56217517,105590.0,105580.0,0.03214736]
[1749947121344,0.55995658,105590.0,105580.0,0.03214736]
[1749947121577,0.56217517,105590.0,105580.0,0.03214736]
[1749947121729,0.55995658,105590.0,105580.0,0.03214736]
[1749947121936,0.56883093,105590.0,105580.0,0.03214736]
[1749947123460,0.55995658,105590.0,105580.0,0.03214736]
[1749947123666,0.56883093,105590.0,105580.0,0.03214736]
[1749947123867,0.56217517,105590.0,105580.0,0.03214736]
[1749947124117,0.56883093,105590.0,105580.0,0.03214736]
[1749947124315,0.55995658,105590.0,105580.0,0.03214736]
[1749947124523,0.56883093,105590.0,105580.0,0.03214736]
[1749947124731,0.55995658,105590.0,105580.0,0.03214736]
[1749947124942,0.56883093,105590.0,105580.0,0.03214736]
[1749947125389,0.55995658,105590.0,105580.0,0.03214736]
[1749947125817,0.56883093,105590.0,105580.0,0.03214736]
[1749947127032,0.56217517,105590.0,105580.0,0.03214736]
[1749947127171,0.57770528,105590.0,105580.0,0.03214736]
[1749947127790,0.56883093,105590.0,105580.0,0.03214736]
[1749947128017,0.56217517,105590.0,105580.0,0.03214736]
[1749947128426,0.57772815,105590.0,105580.0,0.03214736]
[1749947128700,0.56217517,105590.0,105580.0,0.03214736]
[1749947128904,0.57772815,105590.0,105580.0,0.03214736]
[1749947129368,0.56217517,105590.0,105580.0,0.03214736]
[1749947129575,0.56884073,105590.0,105580.0,0.03214736]
[1749947130016,0.57772815,105590.0,105580.0,0.03214736]
[1749947130221,0.56884073,105590.0,105580.0,0.03214736]
[1749947130637,0.57772815,105590.0,105580.0,0.03214736]
[1749947130848,0.56217517,105590.0,105580.0,0.03214736]
[1749947131075,0.57772815,105590.0,105580.0,0.03214736]
[1749947131729,0.60667302,105590.0,105580.0,0.03214736]
[1749947132145,0.60000746,105590.0,105580.0,0.03214736]
[1749947132362,0.57772815,105590.0,105580.0,0.03214736]
[1749947132568,0.57106259,105590.0,105580.0,0.03214736]
[1749947132775,0.57772815,105590.0,105580.0,0.03214736]
[1749947133001,0.56217517,105590.0,105580.0,0.03214736]
[1749947133218,0.57106259,105590.0,105580.0,0.03214736]
[1749947133425,0.57772815,105590.0,105580.0,0.03214736]
[1749947133642,0.57106259,105590.0,105580.0,0.03214736]
[1749947133859,0.56884073,105590.0,105580.0,0.03214736]
[1749947134286,0.56217517,105590.0,105580.0,0.03214736]
[1749947134708,0.57106259,105590.0,105580.0,0.03214736]
[1749947134920,0.57772815,105590.0,105580.0,0.03214736]
[1749947135338,1.01345629,105590.0,105580.0,0.03214736]
[1749947135571,1.02234371,105590.0,105580.0,0.03214736]
[1749947135776,1.01345629,105590.0,105580.0,0.03214736]
[1749947135983,1.02234371,105590.0,105580.0,0.03214736]
[1749947136194,1.02234372,105590.0,105580.0,0.03214736]
[1749947136419,1.01345629,105590.0,105580.0,0.03214736]
[1749947136622,1.02234373,105590.0,105580.0,0.03214736]
[1749947136849,0.56884074,105590.0,105580.0,0.03214736]
[1749947137064,1.02234373,105590.0,105580.0,0.03214736]
[1749947137582,1.00679073,105590.0,105580.0,0.03214736]
[1749947137783,1.02234373,105590.0,105580.0,0.03214736]
[1749947137959,1.00679073,105590.0,105580.0,0.03214736]
[1749947138190,1.0134563,105590.0,105580.0,0.03214736]
[1749947138394,1.02234431,105590.0,105580.0,0.03214736]
[1749947138598,1.01567849,105590.0,105580.0,0.03214736]
[1749947138808,1.02234431,105590.0,105580.0,0.03214736]
[1749947139004,0.57772875,105590.0,105580.0,0.03214736]
[1749947139209,1.02234431,105590.0,105580.0,0.03214736]
[1749947139413,1.01345655,105590.0,105580.0,0.03214736]
[1749947139625,1.00679073,105590.0,105580.0,0.03214736]
[1749947139781,1.02234427,105590.0,105580.0,0.03214736]
[1749947139991,1.01567846,105590.0,105580.0,0.03214736]
[1749947140194,1.02234426,105590.0,105580.0,0.03214736]
[1749947140393,1.00679073,105590.0,105580.0,0.03214736]
[1749947140603,1.02234426,105590.0,105580.0,0.03214736]
[1749947141096,1.01345653,105590.0,105580.0,0.03214736]
[1749947141299,1.01567846,105590.0,105580.0,0.03214736]
[1749947141509,1.02234426,105590.0,105580.0,0.03214736]
[1749947141710,1.00679073,105590.0,105580.0,0.03214736]
[1749947142008,1.02234426,105590.0,105580.0,0.03214736]
[1749947142228,1.01567846,105590.0,105580.0,0.03214736]
[1749947142368,1.0134565,105590.0,105580.0,0.03214736]
[1749947142579,1.02234425,105590.0,105580.0,0.03214736]
[1749947142818,1.01345652,105590.0,105580.0,0.03214736]
[1749947143130,1.02234426,105590.0,105580.0,0.03214736]
[1749947143823,1.00679073,105590.0,105580.0,0.03214736]
[1749947144030,1.02234426,105590.0,105580.0,0.03214736]
[1749947144675,1.01567846,105590.0,105580.0,0.03214736]
[1749947144874,1.02234426,105590.0,105580.0,0.03214736]
[1749947145031,1.01567846,105590.0,105580.0,0.03214736]
[1749947145238,1.02234426,105590.0,105580.0,0.03214736]
[1749947146095,1.01567846,105590.0,105580.0,0.03214736]
[1749947146238,1.01345653,105590.0,105580.0,0.03214736]
[1749947146433,1.01567846,105590.0,105580.0,0.03214736]
[1749947146850,1.01345653,105590.0,105580.0,0.03214736]
[1749947147053,1.01567846,105590.0,105580.0,0.03214736]
[1749947147253,1.02234426,105590.0,105580.0,0.03214736]
[1749947147655,1.0223487,105590.0,105580.0,0.03214736]
[1749947147873,1.00679073,105590.0,105580.0,0.03214736]
[1749947148301,1.0223487,105590.0,105580.0,0.03214736]
[1749947148532,1.01742102,105590.0,105580.0,0.12570089]
[1749947148740,1.01742102,105590.0,105580.0,0.03214736]
[1749947148970,1.01075281,105590.0,105580.0,0.03214736]
[1749947149178,1.01742102,105590.0,105580.0,0.03214736]
[1749947149627,1.00186186,105590.0,105580.0,0.03214736]
[1749947149842,1.00853007,105590.0,105580.0,0.03214736]
[1749947150045,1.01742102,105590.0,105580.0,0.03214736]
[1749947150661,1.00853007,105590.0,105580.0,0.03214736]
[1749947150892,1.01742102,105590.0,105580.0,0.03214736]
[1749947151440,1.00853007,105590.0,105580.0,0.03214736]
[1749947151652,1.01742102,105590.0,105580.0,0.03214736]
[1749947151858,1.00853007,105590.0,105580.0,0.03214736]
[1749947152051,1.01742102,105590.0,105580.0,0.03214736]
[1749947152286,1.01075281,105590.0,105580.0,0.03214736]
[1749947152494,1.01742102,105590.0,105580.0,0.03214736]
[1749947152920,1.00853007,105590.0,105580.0,0.03214736]
[1749947153233,1.01075281,105590.0,105580.0,0.03214736]
[1749947153453,1.01742102,105590.0,105580.0,0.03214736]
[1749947153929,1.00853007,105590.0,105580.0,0.03214736]
[1749947154149,1.01742102,105590.0,105580.0,0.03214736]
[1749947154618,1.00186186,105590.0,105580.0,0.01704736]
[1749947154846,1.00853007,105590.0,105580.0,0.01704736]
[1749947155295,1.01075281,105590.0,105580.0,0.01704736]
[1749947155525,1.31172795,105590.0,105580.0,0.00204736]
[1749947155771,1.16411687,105590.0,105580.0,0.00204736]
[1749947155986,1.34683783,105590.0,105580.0,0.00204736]
[1749947156213,1.34016895,105590.0,105580.0,0.00204736]
[1749947156439,1.34016895,105590.0,105580.0,0.00104736]
[1749947156440,1.34906073,105590.0,105580.0,0.00104736]
[1749947156665,1.19259778,105590.0,105580.0,4.736e-05]
[1749947156892,1.35568958,105590.0,105580.0,4.736e-05]
[1749947157115,1.35668956,105590.0,105580.0,4.736e-05]
[1749947157342,1.33362077,105590.0,105580.0,4.736e-05]
[1749947157551,1.33139776,105590.0,105580.0,4.736e-05]
[1749947157764,1.34028957,105590.0,105580.0,4.736e-05]
[1749947157968,1.33139776,105590.0,105580.0,4.736e-05]
[1749947158171,1.33362076,105590.0,105580.0,4.736e-05]
[1749947158374,1.35668961,105590.0,105580.0,4.736e-05]
[1749947158582,1.34112895,105590.0,105580.0,4.736e-05]
[1749947158790,1.35002076,105590.0,105580.0,4.736e-05]
[1749947158992,1.35668986,105590.0,105580.0,4.736e-05]
[1749947159196,1.35669,105590.0,105580.0,4.736e-05]
[1749947159398,1.34999932,105590.0,105580.0,4.736e-05]
[1749947159606,1.35665211,105590.0,105580.0,4.736e-05]
[1749947159836,1.34999933,105590.0,105580.0,4.736e-05]
[1749947160037,1.35665211,105590.0,105580.0,4.736e-05]
[1749947160428,1.34999933,105590.0,105580.0,4.736e-05]
[1749947160667,1.35665211,105590.0,105580.0,4.736e-05]
[1749947160867,1.34778172,105590.0,105580.0,4.736e-05]
[1749947161114,1.34112895,105590.0,105580.0,4.736e-05]
[1749947161317,1.35665203,105590.0,105580.0,4.736e-05]
[1749947161749,1.34112895,105590.0,105580.0,4.736e-05]
[1749947161951,1.3477817,105590.0,105580.0,4.736e-05]
[1749947162177,1.35665173,105590.0,105580.0,4.736e-05]
[1749947162419,1.3566519,105590.0,105580.0,4.736e-05]
[1749947162641,1.35665203,105590.0,105580.0,4.736e-05]
[1749947163088,1.3477817,105590.0,105580.0,4.736e-05]
[1749947163314,1.35665203,105590.0,105580.0,4.736e-05]
[1749947163955,1.3477817,105590.0,105580.0,4.736e-05]
[1749947164161,1.34112895,105590.0,105580.0,4.736e-05]
[1749947164363,1.35665205,105590.0,105580.0,4.736e-05]
[1749947164581,1.34999929,105590.0,105580.0,4.736e-05]
[1749947164809,1.34112895,105590.0,105580.0,4.736e-05]
[1749947165018,1.3566519,105590.0,105580.0,4.736e-05]
[1749947165287,1.33359916,105590.0,105580.0,4.736e-05]
[1749947165524,1.34025181,105590.0,105580.0,4.736e-05]
[1749947165759,1.3313816,105590.0,105580.0,4.736e-05]
[1749947165982,1.3402518,105590.0,105580.0,4.736e-05]
[1749947166208,1.33359915,105590.0,105580.0,4.736e-05]
[1749947166442,1.35535179,105590.0,105580.0,4.736e-05]
[1749947166684,1.3464816,105590.0,105580.0,4.736e-05]
[1749947166934,1.33982895,105590.0,105580.0,4.736e-05]
[1749947167144,1.3553518,105590.0,105580.0,4.736e-05]
[1749947167574,1.33982895,105590.0,105580.0,4.736e-05]
[1749947167993,1.34869915,105590.0,105580.0,4.736e-05]
[1749947168196,1.364222,105590.0,105580.0,4.736e-05]
[1749947168374,1.35759107,105590.0,105580.0,4.736e-05]
[1749947168783,1.20116799,105590.0,105580.0,4.736e-05]
[1749947169004,1.36421982,105590.0,105580.0,4.736e-05]
[1749947169210,1.21005979,105590.0,105580.0,4.736e-05]
[1749947169413,1.36429977,105590.0,105580.0,4.736e-05]
[1749947169757,1.35763093,105590.0,105580.0,4.736e-05]
[1749947169956,1.35540795,105590.0,105580.0,4.736e-05]
[1749947170159,1.35763088,105590.0,105580.0,4.736e-05]
[1749947170363,1.36429973,105590.0,105580.0,4.736e-05]
[1749947170576,1.35763091,105590.0,105580.0,4.736e-05]
[1749947170958,1.34030797,105590.0,105580.0,4.736e-05]
[1749947171319,1.34919973,105590.0,105580.0,4.736e-05]
[1749947171523,1.34030797,105590.0,105580.0,4.736e-05]
[1749947171734,1.34919973,105590.0,105580.0,4.736e-05]
[1749947171934,1.34253091,105590.0,105580.0,4.736e-05]
[1749947172079,1.34919973,105590.0,105580.0,4.736e-05]
[1749947172264,1.33363915,105590.0,105580.0,4.736e-05]
[1749947172471,1.34919973,105590.0,105580.0,4.736e-05]
[1749947172784,1.33363915,105590.0,105580.0,4.736e-05]
[1749947173009,1.34919897,105590.0,105580.0,4.736e-05]
[1749947173205,1.33363915,105590.0,105580.0,4.736e-05]
[1749947173406,1.34919943,105590.0,105580.0,4.736e-05]
[1749947173582,0.75034391,105590.0,105580.0,4.736e-05]
[1749947173786,0.90450394,105590.0,105580.0,4.736e-05]
[1749947173991,1.3491195,105590.0,105580.0,4.736e-05]
[1749947174645,1.34911949,105590.0,105580.0,4.736e-05]
[1749947175159,1.3491195,105590.0,105580.0,4.736e-05]
[1749947176342,1.34022787,105590.0,105580.0,4.736e-05]
[1749947176566,1.3491195,105590.0,105580.0,4.736e-05]
[1749947176760,1.34911953,105590.0,105580.0,4.736e-05]
[1749947176963,1.33403954,105590.0,105580.0,4.736e-05]
[1749947177181,0.91999435,105590.0,105580.0,0.47616292]
[1749947177493,0.60375222,105590.0,105580.0,0.75204357]
[1749947177676,0.6104205,105590.0,105580.0,0.54367105]
[1749947177875,0.61042048,105590.0,105580.0,0.47616292]
[1749947178085,0.58267576,105590.0,105580.0,0.47616292]
[1749947178410,0.58167576,105590.0,105580.0,0.47616292]
[1749947178617,0.58167561,105590.0,105580.0,0.03254736]
[1749947178790,0.5816754,105590.0,105580.0,0.03254736]
[1749947178971,0.57500721,105590.0,105580.0,0.47716292]
[1749947179172,0.57278453,105590.0,105580.0,0.47716292]
[1749947179370,0.57278453,105590.0,105580.0,0.03254736]
[1749947179724,0.58167519,105590.0,105580.0,0.03354736]
[1749947180029,0.58167515,105590.0,105580.0,0.03354736]
[1749947180245,0.58167513,105590.0,105580.0,0.03354736]
[1749947180444,0.5727845,105590.0,105580.0,0.03354736]
[1749947180615,0.57500717,105590.0,105580.0,0.03354736]
[1749947180819,0.5661165,105590.0,105580.0,0.03354736]
[1749947181144,0.57500716,105590.0,105580.0,0.03354736]
[1749947181508,0.58167515,105590.0,105580.0,0.03354736]
[1749947181691,0.57278449,105590.0,105580.0,0.03354736]
[1749947181892,0.57500715,105590.0,105580.0,0.03354736]
[1749947182379,0.58167514,105590.0,105580.0,0.03354736]
[1749947182883,0.57500715,105590.0,105580.0,0.03354736]
[1749947183243,0.58167514,105590.0,105580.0,0.03354736]
[1749947183625,0.57500714,105590.0,105580.0,0.03354736]
[1749947183832,0.58167511,105590.0,105580.0,0.03354736]
[1749947184113,0.58167513,105590.0,105580.0,0.03354736]
[1749947184318,0.5661165,105590.0,105580.0,0.03354736]
[1749947184517,0.61072319,105590.0,105580.0,0.03354736]
[1749947184725,0.60405526,105590.0,105580.0,0.03354736]
[1749947184930,0.59516459,105590.0,105580.0,0.03354736]
[1749947185139,0.61072326,105590.0,105580.0,0.03354736]
[1749947185340,0.60183259,105590.0,105580.0,0.03354736]
[1749947185547,0.61072329,105590.0,105580.0,0.03354736]
[1749947185951,0.61072331,105590.0,105580.0,0.03354736]
[1749947186200,0.60405539,105590.0,105580.0,0.03354736]
[1749947186397,0.60183269,105590.0,105580.0,0.12769506]
[1749947186600,0.61072349,105590.0,105580.0,0.03354736]
[1749947186803,0.60183269,105590.0,105580.0,0.03354736]
[1749947186978,0.61072349,105590.0,105580.0,0.03354736]
[1749947187784,0.60183269,105590.0,105580.0,0.03354736]
[1749947187923,0.61072349,105590.0,105580.0,0.03354736]
[1749947188133,0.5816754,105590.0,105580.0,0.03354736]
[1749947188327,0.5727846,105590.0,105580.0,0.03354736]
[1749947188727,0.5816754,105590.0,105580.0,0.03354736]
[1749947189140,0.5727846,105590.0,105580.0,0.03354736]
[1749947189382,0.58167538,105590.0,105580.0,0.03354736]
[1749947190201,0.58167537,105590.0,105580.0,0.03354736]
[1749947190418,0.57278458,105590.0,105580.0,0.03354736]
[1749947190806,0.57500728,105590.0,105580.0,0.03354736]
[1749947191008,0.57278457,105590.0,105580.0,0.03354736]
[1749947191326,0.5661165,105590.0,105580.0,0.03354736]
[1749947191530,0.57278458,105590.0,105580.0,0.03354736]
[1749947191745,0.57500728,105590.0,105580.0,0.03354736]
[1749947192085,0.58167536,105590.0,105580.0,0.03354736]
[1749947192940,0.57500727,105590.0,105580.0,0.03354736]
[1749947193192,0.57278457,105590.0,105580.0,0.03354736]
[1749947193430,0.5661165,105590.0,105580.0,0.03354736]
[1749947193870,0.57278457,105590.0,105580.0,0.03354736]
[1749947194132,0.57500725,105590.0,105580.0,0.03354736]
[1749947194353,0.57278456,105590.0,105580.0,0.03354736]
[1749947194588,0.57500727,105590.0,105580.0,0.03354736]
[1749947195049,0.58167534,105590.0,105580.0,0.03354736]
[1749947195326,0.57278457,105590.0,105580.0,0.03354736]
[1749947196029,0.5661165,105590.0,105580.0,0.03354736]
[1749947196240,0.58167534,105590.0,105580.0,0.03354736]
[1749947196783,0.57500727,105590.0,105580.0,0.03354736]
[1749947196986,0.58167534,105590.0,105580.0,0.03354736]